[Event "USA-ch Girls 2017"]
[Site "Saint Louis"]
[Date "2017.07.12"]
[Round "5"]
[White "Wang, Annie"]
[Black "Bykovtsev, Agata"]
[Result "1-0"]
[ECO "E61"]
[WhiteElo "2023"]
[BlackElo "2045"]
[Annotator "NA RC"]
[PlyCount "115"]
[EventDate "2017.??.??"]
[EventType "tourn"]
[EventCountry "USA"]
[SourceTitle "playchess.com"]
[Source "ChessBase"]
[SourceQuality "1"]
[TimeControl "40/5400+30:1800+30"]

{[%evp 8,115,51,18,32767,32767,32767,32767,12,3,44,7,32767,32767,32767,32767,32767,32767,32767,32767,69,32767,171,125,144,136,135,119,141,106,141,143,150,81,81,100,99,64,62,15,30,6,27,14,11,-9,-8,-16,2,0,4,-25,58,-30,-4,-32,32767,32767,0,-174,-183,-163,-68,-139,-102,-146,24,3,106,93,126,219,277,215,416,181,372,347,438,538,637,520,602,668,741,1100,943,472,577,700,750,941,522,1052,889,1036,1118,2006,4686,3551,2595,4686,29979,29982,29982,29960,29983,29986,29986,29987]} 1. d4 {[%emt 0:00:00]} Nf6 {[%emt 0:00:04]} 2. c4 {[%emt 0:00:00]} g6 {[%emt 0:00:02]} 3. Nc3 {[%emt 0:00:00]} Bg7 {[%emt 0:00:08]} 4. Nf3 {[%emt 0:00:00]} d6 {[%emt 0:00:06]} 5. Bg5 {[%emt 0:00:00]} h6 {[%emt 0:00:05]} 6. Bh4 {[%emt 0:00:08]} g5 {[%emt 0:00:05]} 7. Bg3 {[%emt 0:00:09]} Nh5 {[%emt 0:00:22]} 8. e3 {[%emt 0:00:13] LiveBook: 222 Games} e6 {[%emt 0:00:19]} 9. Be2 {[%emt 0:00:10]} Qe7 {[%emt 0:00:32] E61: King's Indian: Early deviations for White, including Smyslov System} 10. Qc2 {[%emt 0:00:12]} Nd7 {[%emt 0:00:36]} (10... Nc6 11. Nd2 Nxg3 12. hxg3 Bd7 13. O-O-O O-O-O 14. Kb1 Kb8 15. Nb3 f5 16. a3 Rdf8 {½-½ (34) Moiseenko,A (2646)-Cheparinov,I (2670) Kemer 2007}) 11. O-O-O {[%emt 0:00:12]} Ndf6 {[%emt 0:00:35]} 12. Nd2 {[%emt 0:00:13]} (12. Ne1 c6 13. e4 Nxg3 14. hxg3 e5 15. d5 cxd5 16. cxd5 O-O 17. Qd2 {0-1 (54) Wang,A (2061)-Bykovtsev,A (2158) Manchester 2016}) 12... Nxg3 {[%emt 0:03:57]} 13. hxg3 {[%emt 0:00:10]} O-O $146 {[%emt 0:15:25]} ({Predecessor:} 13... Bd7 14. Bf3 c6 15. Nde4 Nxe4 16. Nxe4 f5 17. Bh5+ {0-1 (54) Inkiov,V (2476)-Spirin,O (2491) Creon 2011}) 14. Kb1 {[%emt 0:12:31]} Ne8 {[%emt 0:11:52]} (14... e5 $14) 15. g4 {[%emt 0:20:57]} f5 {[%emt 0:05:52]} 16. gxf5 {[%emt 0:01:59]} exf5 {[%emt 0:00:15]} 17. Bd3 {[%emt 0:00:57]} c6 {[%emt 0:08:30]} 18. Nf1 {[%emt 0:04:06]} Be6 {[%emt 0:13:22]} 19. Ng3 {[%emt 0:06:22]} Qf7 {[%emt 0:04:16]} 20. Qe2 {[%emt 0:06:45]} (20. d5 $142 cxd5 21. Nxd5) 20... d5 {[%emt 0:03:32]} 21. cxd5 {[%emt 0:06:55]} cxd5 {[%emt 0:00:11]} 22. Bc2 {[%emt 0:05:08]} Nd6 {[%emt 0:05:47]} 23. Rdf1 {[%emt 0:02:34]} Ne4 {[%emt 0:04:28]} 24. Ngxe4 {[%emt 0:01:34]} dxe4 {[%emt 0:00:50]} 25. Rc1 {[%emt 0:06:32]} a6 {[%emt 0:10:43]} 26. f3 {[%emt 0:11:47]} exf3 {[%emt 0:00:50]} 27. gxf3 {[%emt 0:00:08]} b5 {[%emt 0:02:12]} 28. d5 {[%emt 0:00:55]} Bd7 {[%emt 0:00:55]} 29. Bb3 {[%emt 0:00:34]} Rfe8 {[%emt 0:03:05]} (29... Rad8 $11) 30. Qd2 {[%emt 0:01:03]} ({White should try} 30. Rhd1 $16) 30... Rad8 {[%emt 0:01:22]} 31. Ka1 {[%emt 0:02:02]} Kh7 {[%emt 0:02:11]} 32. e4 {[%emt 0:04:05]} Qf6 {[%emt 0:01:58]} 33. Nd1 $2 {[%emt 0:01:13]} (33. exf5 $11 {and White stays safe.} Bxf5 34. Rcg1) 33... fxe4 {[%emt 0:01:06]} 34. fxe4 {[%emt 0:00:11]} Kh8 {[%emt 0:00:41]} (34... Rxe4 $19 35. Bc2 Bf5 36. Bxe4 Bxe4) 35. Nf2 {[%emt 0:01:17] [#]} (35. Bc2 $15) 35... a5 $1 {[%emt 0:00:15]} 36. Rcf1 {[%emt 0:01:44] [#]} Qg6 $2 {[%emt 0:01:21]} (36... Rf8 $1 $17 37. Kb1 a4) 37. Qxa5 {[%emt 0:03:07]} Ra8 {[%emt 0:00:12]} (37... Rf8 $11 {keeps the balance.}) 38. Qd2 {[%emt 0:00:16]} Ra6 {[%emt 0:00:39] [#]} ({Black should play} 38... g4 $14) 39. Nd3 $1 {[%emt 0:00:36]} Rea8 {[%emt 0:00:35]} (39... Rf6 $142 40. Rfg1 Bc8) 40. Nc5 {[%emt 0:00:00]} R6a7 $2 {[%emt 0:00:34]} (40... Rd6 {might work better.} 41. Bd1 Be5) 41. Re1 $2 {[%emt 0:09:31]} (41. d6) 41... Be8 $2 {[%emt 0:17:15]} (41... Qb6) 42. Ne6 {[%emt 0:08:33]} Kg8 {[%emt 0:01:59]} 43. Rhf1 {[%emt 0:06:20]} Bf7 {[%emt 0:02:15]} 44. Nxg7 {[%emt 0:00:32]} Kxg7 {[%emt 0:03:17]} 45. Qd4+ {[%emt 0:02:33]} Kg8 {[%emt 0:00:18]} 46. Rf6 {[%emt 0:01:34]} Qg7 {[%emt 0:00:26]} 47. Ref1 {[%emt 0:00:38]} Ra6 {[%emt 0:02:56]} 48. Rxa6 {[%emt 0:01:54]} Qxd4 {[%emt 0:00:19]} 49. Rxa8+ {[%emt 0:00:06]} Kg7 {[%emt 0:00:15]} 50. Rc8 {[%emt 0:00:42]} Qd3 {[%emt 0:02:11]} 51. Rd1 {[%emt 0:02:05]} Qf3 {[%emt 0:03:06]} 52. e5 {[%emt 0:01:32]} g4 {[%emt 0:01:19]} 53. Rc7 {[%emt 0:00:41]} Kg6 {[%emt 0:00:27]} 54. e6 {[%emt 0:00:30]} Bxe6 {[%emt 0:00:44]} 55. dxe6 {[%emt 0:00:09]} Qe2 {[%emt 0:00:48]} 56. Rcc1 {[%emt 0:00:18]} Qe5 {[%emt 0:00:20]} 57. Re1 {[%emt 0:00:08]} Qb8 {[%emt 0:00:27]} 58. e7 {[%emt 0:00:12]} 1-0

[Event "USA-ch Girls 2017"]
[Site "Saint Louis"]
[Date "2017.07.14"]
[Round "6"]
[White "Eswaran, Ashritha"]
[Black "Ulrich, Rachel J"]
[Result "1-0"]
[ECO "B90"]
[WhiteElo "2086"]
[BlackElo "2049"]
[Annotator "NA RC"]
[PlyCount "91"]
[EventDate "2017.??.??"]
[EventType "tourn"]
[EventCountry "USA"]
[SourceTitle "playchess.com"]
[Source "ChessBase"]
[SourceQuality "1"]
[TimeControl "40/5400+30:1800+30"]

{[%evp 20,88,8,-36,-10,-35,0,-1,34,34,32767,55,97,68,37,44,43,0,0,0,3,-2,8,-11,3,-20,-29,-7,13,-15,12,32767,-20,-15,-15,-56,0,-7,32767,32767,32767,32767,5,-78,-70,-72,-73,-91,-114,-166,-155,-189,-139,-169,-166,-176,130,114,32767,32767,32767,32767,32767,32767,128,114,171,158,389,444,441]} 1. e4 {[%emt 0:00:00]} c5 {[%emt 0:00:04]} 2. Nf3 {[%emt 0:00:00]} d6 {[%emt 0:00:03]} 3. d4 {[%emt 0:00:00]} cxd4 {[%emt 0:00:04]} 4. Nxd4 {[%emt 0:00:07]} Nf6 {[%emt 0:00:02]} 5. Nc3 {[%emt 0:00:12]} a6 {[%emt 0:00:04]} 6. Nb3 {[%emt 0:00:15]} e6 {[%emt 0:02:03] B90: Sicilian Najdorf: Unusual White 6th moves, 6 Be3 Ng4 and 6 Be3 e5} (6... Nc6 7. Be3 e6 8. g4 h6 9. h4 b5 10. Bg2 Ne5 11. g5 Nfd7 12. f4 Nc4 13. Qe2 Nxb2 14. e5 Rb8 {1-0 (39) Vitiugov,N (2724)-Artemiev,V (2655) Moscow 2017}) 7. g4 {[%emt 0:00:52]} h6 {[%emt 0:00:52]} 8. Bg2 {[%emt 0:00:49]} Nbd7 {[%emt 0:01:06]} 9. Be3 $146 {[%emt 0:02:07]} ({Predecessor:} 9. h4 Ne5 10. g5 hxg5 11. hxg5 Rxh1+ 12. Bxh1 Nfg4 13. f3 Qb6 14. Qd4 {1-0 (23) Lintner,I (2234)-Hrebicik,D (1793) Liptovsky Mikulas 2017}) 9... Qc7 {[%emt 0:00:14]} 10. Qe2 {[%emt 0:01:18]} Ne5 {[%emt 0:05:32]} 11. h3 {[%emt 0:02:17]} Nc4 {[%emt 0:00:23]} 12. O-O-O {[%emt 0:00:53]} Be7 {[%emt 0:02:07]} 13. f4 {[%emt 0:01:52]} Nxe3 {[%emt 0:00:46]} 14. Qxe3 {[%emt 0:00:08]} Bd7 {[%emt 0:14:09]} 15. Kb1 {[%emt 0:10:14]} O-O-O {[%emt 0:08:00]} 16. Qa7 {[%emt 0:12:25]} ({White should play} 16. e5 $16) 16... Bc6 {[%emt 0:06:08]} 17. Nd4 {[%emt 0:02:11]} Nd7 {[%emt 0:01:41]} 18. Nxc6 {[%emt 0:02:59]} (18. f5 $14) 18... Qxc6 {[%emt 0:00:09]} 19. Qf2 {[%emt 0:00:21]} Kb8 {[%emt 0:03:33]} 20. h4 {[%emt 0:07:26]} Rc8 {[%emt 0:02:05]} 21. g5 {[%emt 0:05:50]} b5 {[%emt 0:01:31]} 22. Qd2 {[%emt 0:04:58]} Nb6 {[%emt 0:01:00]} 23. Qd4 {[%emt 0:02:23]} Rhg8 {[%emt 0:06:30]} 24. Rc1 {[%emt 0:01:53]} Nc4 {[%emt 0:06:32]} 25. Rh3 {[%emt 0:05:37]} b4 {[%emt 0:04:47]} 26. Ne2 {[%emt 0:02:15]} e5 {[%emt 0:00:29]} 27. Qd3 {[%emt 0:01:20]} Bd8 {[%emt 0:09:21]} (27... Qc5 $15 28. Qd1 Qf2) 28. Rg3 {[%emt 0:07:16]} Bb6 {[%emt 0:01:05]} 29. Bh3 {[%emt 0:01:52]} Rcd8 {[%emt 0:00:24]} 30. c3 {[%emt 0:03:11]} Qxe4 {[%emt 0:04:02]} 31. cxb4 {[%emt 0:00:15]} (31. Bf5 $1 $11 Qxd3+ 32. Bxd3 exf4 33. Nxf4) 31... Qxd3+ {[%emt 0:00:43]} 32. Rxd3 {[%emt 0:00:08]} e4 {[%emt 0:00:13]} 33. Rdc3 {[%emt 0:01:16]} d5 {[%emt 0:00:09]} 34. a4 {[%emt 0:02:45]} hxg5 {[%emt 0:01:20]} 35. hxg5 {[%emt 0:00:55]} Be3 {[%emt 0:00:36]} 36. Rd1 {[%emt 0:05:09]} Rh8 {[%emt 0:04:37]} 37. Bg4 {[%emt 0:03:17]} Rh4 $2 {[%emt 0:04:35] [#]} (37... Nd2+ $17 {keeps the pressure on.} 38. Kc2 d4 39. Nxd4 Bxd4 40. Rxd2 e3) 38. Rxc4 $1 {[%emt 0:01:09]} Rxg4 {[%emt 0:01:07]} 39. Rxe4 {[%emt 0:00:26]} dxe4 {[%emt 0:00:06]} 40. Rxd8+ {[%emt 0:00:00]} Kc7 {[%emt 0:00:06]} 41. Rf8 {[%emt 0:02:09]} Kd6 {[%emt 0:02:50]} 42. Rxf7 {[%emt 0:00:54]} Ke6 {[%emt 0:00:04]} (42... Rg2 $16 43. Nc3 Bd4) 43. Rf8 {[%emt 0:03:58]} Bd2 $2 {[%emt 0:02:13]} (43... Rg2 {was called for.}) 44. Re8+ {[%emt 0:01:33]} Kf5 $18 {[%emt 0:01:34]} 45. Re5+ {[%emt 0:00:11]} Kg6 {[%emt 0:00:09]} 46. Rxe4 {[%emt 0:00:07]} 1-0

[Event "USA-ch Girls 2017"]
[Site "Saint Louis"]
[Date "2017.07.15"]
[Round "7"]
[White "Ulrich, Rachel J"]
[Black "Cervantes Landeiro, Thalia"]
[Result "1/2-1/2"]
[ECO "C65"]
[WhiteElo "2049"]
[BlackElo "2032"]
[Annotator "NA RC"]
[PlyCount "94"]
[EventDate "2017.??.??"]
[EventType "tourn"]
[EventCountry "USA"]
[SourceTitle "playchess.com"]
[Source "ChessBase"]
[SourceQuality "1"]
[TimeControl "40/5400+30:1800+30"]

{[%evp 22,94,-7,-2,-5,-8,32,28,37,10,39,16,13,24,7,17,36,15,27,32767,58,24,72,54,52,32767,32767,32767,32767,41,32767,32767,39,32767,43,32767,32767,32767,32767,32767,32767,57,64,69,66,66,80,39,63,63,161,149,161,174,179,182,207,151,167,114,236,163,214,130,32767,32767,32767,32767,32767,32767,32767,32767,32767,32767,99]} 1. e4 {[%emt 0:00:00]} e5 {[%emt 0:00:05]} 2. Nf3 {[%emt 0:00:00]} Nc6 {[%emt 0:00:05]} 3. Bb5 {[%emt 0:00:00]} Nf6 {[%emt 0:00:08]} 4. d3 {[%emt 0:00:00]} Bc5 {[%emt 0:00:05]} 5. O-O {[%emt 0:00:00]} d6 {[%emt 0:00:19]} 6. Nbd2 {[%emt 0:00:27] C65: Ruy Lopez: Berlin Defence (3...Nf6), unusual lines and 4 0-0 Bc5} O-O {[%emt 0:00:16]} 7. Bxc6 {[%emt 0:00:02]} bxc6 {[%emt 0:00:07]} 8. h3 {[%emt 0:00:06]} Re8 {[%emt 0:00:59]} 9. Re1 {[%emt 0:00:12]} a5 {[%emt 0:03:25]} 10. a4 {[%emt 0:03:25]} h6 {[%emt 0:07:42]} 11. Nc4 $146 {[%emt 0:06:10]} ({Predecessor:} 11. Nf1 Nh5 12. c3 Qf6 13. d4 Bb6 {1-0 (35) Idani,P (2496)-Bacrot,E (2712) Nakhchivan 2015}) 11... Be6 {[%emt 0:06:03]} 12. b3 {[%emt 0:01:03]} Nd7 {[%emt 0:12:15]} 13. Bd2 {[%emt 0:00:56]} Bb6 {[%emt 0:02:23]} (13... Bxc4 $5 14. bxc4 Qf6 $11) 14. Nxb6 {[%emt 0:05:35]} cxb6 {[%emt 0:00:18]} 15. d4 {[%emt 0:00:04]} Qc7 {[%emt 0:02:11]} 16. Bc3 {[%emt 0:01:53]} Rad8 {[%emt 0:01:20]} 17. Bb2 {[%emt 0:03:05]} f6 {[%emt 0:03:32]} 18. c4 {[%emt 0:06:18]} exd4 {[%emt 0:03:36]} 19. Nxd4 {[%emt 0:00:06]} Nc5 {[%emt 0:01:18]} 20. Qf3 {[%emt 0:04:15]} Bc8 {[%emt 0:07:04]} 21. Re3 {[%emt 0:08:29]} Ne6 {[%emt 0:04:21]} 22. Nf5 {[%emt 0:02:22]} Ng5 {[%emt 0:02:24]} 23. Qf4 {[%emt 0:00:15]} Bxf5 {[%emt 0:14:03]} 24. Qxf5 {[%emt 0:00:43]} Qd7 {[%emt 0:07:57]} 25. Qf4 {[%emt 0:00:53]} Ne6 {[%emt 0:01:51]} 26. Qh4 {[%emt 0:05:39]} Nc5 {[%emt 0:01:27]} 27. Rd1 {[%emt 0:02:02]} Qf7 {[%emt 0:02:40]} 28. Ba3 {[%emt 0:03:25]} Kh7 {[%emt 0:00:30]} 29. Qf4 {[%emt 0:03:13]} Re5 {[%emt 0:07:05]} 30. Bxc5 {[%emt 0:00:09]} bxc5 31. Red3 {[%emt 0:03:50]} Qe6 {[%emt 0:00:28]} 32. Qd2 {[%emt 0:01:13]} Rxe4 {[%emt 0:02:31]} 33. Rxd6 {[%emt 0:06:49]} Rxd6 {[%emt 0:01:10]} 34. Qxd6 {[%emt 0:00:05]} Re1+ {[%emt 0:01:19]} 35. Kh2 {[%emt 0:00:54]} Qxd6+ {[%emt 0:00:34]} (35... Qe7 $16 {was necessary.}) 36. Rxd6 {[%emt 0:00:05]} Rb1 {[%emt 0:00:23]} 37. Rxc6 {[%emt 0:00:03]} Rxb3 {[%emt 0:00:16]} 38. Rxc5 {[%emt 0:00:04]} Rb4 {[%emt 0:00:06]} 39. Rxa5 {[%emt 0:00:05]} Rxc4 {[%emt 0:00:04]} 40. g4 {[%emt 0:00:00]} ({Better is} 40. g3 $18) 40... Rc2 {[%emt 0:01:15]} (40... Rd4 $16 {was worth a try.} 41. Ra8 Rd3) 41. Kg3 {[%emt 0:01:16]} Ra2 {[%emt 0:01:00] [#]} 42. Ra7 {[%emt 0:00:58]} (42. h4 $1 $18) 42... Ra3+ {[%emt 0:01:29]} 43. f3 {[%emt 0:00:07]} Kg6 {[%emt 0:01:07]} 44. Ra5 {[%emt 0:03:00]} Kh7 {[%emt 0:02:58]} 45. h4 {[%emt 0:00:10]} g5 {[%emt 0:07:41]} 46. Ra7+ {[%emt 0:00:43]} Kh8 {[%emt 0:00:25]} 47. h5 {[%emt 0:00:57]} Ra2 $16 {[%emt 0:01:23]} 1/2-1/2

[Event "USA-ch Girls 2017"]
[Site "Saint Louis"]
[Date "2017.07.16"]
[Round "8"]
[White "Gorti, Akshita"]
[Black "Feng, Maggie"]
[Result "1/2-1/2"]
[ECO "A90"]
[WhiteElo "2232"]
[BlackElo "2304"]
[Annotator "ChessBase"]
[PlyCount "52"]
[EventDate "2017.??.??"]
[EventType "tourn"]
[EventCountry "USA"]
[SourceTitle "playchess.com"]
[Source "ChessBase"]
[SourceQuality "1"]
[TimeControl "40/5400+30:1800+30"]

1. d4 {[%emt 0:00:00]} e6 {[%emt 0:00:16]} 2. c4 {[%emt 0:00:00]} f5 {[%emt 0:00:22]} 3. g3 {[%emt 0:00:02]} Nf6 {[%emt 0:00:16]} 4. Bg2 {[%emt 0:00:12]} c6 {[%emt 0:03:38]} 5. Nf3 {[%emt 0:00:22]} d5 {[%emt 0:00:08]} 6. O-O {[%emt 0:00:11]} Bd6 {[%emt 0:00:10]} 7. Nc3 {[%emt 0:00:17]} O-O {[%emt 0:00:40]} 8. Qc2 {[%emt 0:00:09]} Nbd7 {[%emt 0:04:46]} 9. cxd5 {[%emt 0:00:52]} cxd5 {[%emt 0:06:20]} 10. Nb5 {[%emt 0:01:30]} Bb8 {[%emt 0:00:07]} 11. Bf4 {[%emt 0:00:40]} Bxf4 {[%emt 0:05:30]} 12. gxf4 {[%emt 0:00:10]} Ne8 {[%emt 0:00:03]} 13. Rfc1 {[%emt 0:01:38]} Qb6 {[%emt 0:01:34]} 14. a4 {[%emt 0:12:54]} a6 {[%emt 0:01:18]} 15. Nc7 {[%emt 0:13:17]} Nxc7 {[%emt 0:03:49]} 16. Qxc7 {[%emt 0:00:22]} Qxb2 {[%emt 0:01:26]} 17. e3 {[%emt 0:11:47]} Qb6 {[%emt 0:04:14]} 18. a5 {[%emt 0:05:38]} Qxc7 {[%emt 0:01:22]} 19. Rxc7 {[%emt 0:00:02]} Rd8 {[%emt 0:11:22]} 20. Ng5 {[%emt 0:07:43]} Nf6 {[%emt 0:04:37]} 21. Rac1 {[%emt 0:03:21]} Ne8 {[%emt 0:00:39]} 22. Re7 {[%emt 0:00:48]} Kf8 {[%emt 0:00:04]} 23. Rf7+ {[%emt 0:00:11]} Kg8 {[%emt 0:00:04]} 24. Re7 {[%emt 0:00:20]} Kf8 {[%emt 0:00:04]} 25. Rf7+ {[%emt 0:00:09]} Kg8 {[%emt 0:00:07]} 26. Re7 {[%emt 0:00:09]} Kf8 1/2-1/2

[Event "USA-ch Girls 2017"]
[Site "Saint Louis"]
[Date "2017.07.16"]
[Round "8"]
[White "Nguyen, Emily"]
[Black "Ulrich, Rachel J"]
[Result "1/2-1/2"]
[ECO "D45"]
[WhiteElo "2048"]
[BlackElo "2049"]
[Annotator "NA"]
[PlyCount "98"]
[EventDate "2017.??.??"]
[EventType "tourn"]
[EventCountry "USA"]
[SourceTitle "playchess.com"]
[Source "ChessBase"]
[SourceQuality "1"]
[TimeControl "40/5400+30:1800+30"]

{[%evp 30,98,63,92,32767,51,81,32767,32767,32767,32767,32767,32767,32767,32767,32767,145,120,137,123,151,106,116,32767,32767,83,84,87,85,84,81,64,70,61,60,62,54,70,70,43,72,45,40,41,41,42,32767,32767,32767,32767,32767,32767,32767,32767,32767,32767,30,32767,35,37,30,35,37,37,35,0,8,0,0,0,0]} 1. d4 {[%emt 0:00:00]} d5 {[%emt 0:00:01]} 2. c4 {[%emt 0:00:00]} c6 {[%emt 0:00:02]} 3. Nf3 {[%emt 0:00:00]} Nf6 {[%emt 0:00:02]} 4. Nc3 {[%emt 0:00:00]} e6 {[%emt 0:00:04]} 5. e3 {[%emt 0:00:10]} a6 {[%emt 0:00:37]} 6. b3 {[%emt 0:00:55]} Bb4 {[%emt 0:00:09]} 7. Bd2 {[%emt 0:00:18]} Nbd7 {[%emt 0:00:08]} 8. Bd3 {[%emt 0:00:26]} O-O {[%emt 0:00:06]} 9. O-O {[%emt 0:00:30] D45: Semi-Slav: 5 e3} (9. Qc2 Qe7 10. Ne5 Nxe5 11. dxe5 Ng4 12. f4 f5 13. g3 Rd8 14. h3 Nxe3 15. Bxe3 d4 16. Bd2 dxc3 17. Bxc3 Bxc3+ 18. Qxc3 {0-1 (29) Topalov,V (2749)-Carlsen,M (2832) Paris 2017}) 9... Bd6 {[%emt 0:00:02]} 10. e4 {[%emt 0:02:25]} dxc4 {[%emt 0:03:53]} 11. bxc4 {[%emt 0:00:16]} e5 {[%emt 0:00:03]} 12. d5 {[%emt 0:05:35]} Nc5 {[%emt 0:00:41]} 13. Bc2 {[%emt 0:00:52] [#]} Qc7 $146 {[%emt 0:01:14]} ({Predecessor:} 13... cxd5 14. cxd5 Bg4 15. h3 Bh5 16. a4 Rc8 {1-0 (55) Drozdovskij,Y (2561)-Malakhatko,V (2617) Warsaw 2006}) 14. h3 {[%emt 0:09:51]} b5 {[%emt 0:07:53]} 15. Bg5 {[%emt 0:13:12]} Nfd7 {[%emt 0:05:20]} (15... b4 $1 $15 16. Bxf6 bxc3) 16. dxc6 {[%emt 0:08:07]} Qxc6 {[%emt 0:00:06]} 17. cxb5 {[%emt 0:00:52]} axb5 {[%emt 0:00:06]} 18. Nxb5 {[%emt 0:01:32]} Qxb5 {[%emt 0:00:10]} 19. Qxd6 {[%emt 0:00:08]} Qc4 {[%emt 0:00:13]} 20. Rfc1 {[%emt 0:17:13]} Rxa2 {[%emt 0:04:22]} 21. Rxa2 {[%emt 0:04:14]} Qxa2 {[%emt 0:00:07]} 22. Nxe5 {[%emt 0:00:42]} Qe6 {[%emt 0:28:57]} 23. Be7 {[%emt 0:07:15]} Re8 {[%emt 0:02:10]} 24. Nxd7 {[%emt 0:01:05]} Qxd7 {[%emt 0:01:11]} 25. Qxc5 {[%emt 0:00:47]} Qxe7 {[%emt 0:00:13]} 26. Bb3 {[%emt 0:08:39]} Bb7 {[%emt 0:06:30]} 27. Bd5 {[%emt 0:05:50]} Qxc5 {[%emt 0:01:17]} 28. Rxc5 {[%emt 0:00:05]} Bxd5 {[%emt 0:00:17]} 29. Rxd5 {[%emt 0:02:12]} g6 {[%emt 0:00:17]} 30. e5 {[%emt 0:01:03]} h5 {[%emt 0:00:05]} 31. f4 {[%emt 0:01:03]} Rb8 {[%emt 0:00:07]} 32. Kf2 {[%emt 0:02:29]} Rb3 {[%emt 0:00:18]} 33. Rd2 {[%emt 0:01:15]} Kf8 {[%emt 0:02:43]} 34. Re2 {[%emt 0:00:25]} Ke7 {[%emt 0:00:09]} 35. Re3 {[%emt 0:00:10]} Rb4 {[%emt 0:00:51]} 36. Kf3 {[%emt 0:00:12]} f6 {[%emt 0:02:43]} 37. g4 {[%emt 0:03:07]} hxg4+ {[%emt 0:00:23]} 38. hxg4 {[%emt 0:00:30]} fxe5 {[%emt 0:03:26]} 39. Rxe5+ {[%emt 0:01:17]} Kf6 {[%emt 0:00:15]} 40. g5+ {[%emt 0:00:00]} Kf7 {[%emt 0:00:07]} 41. Ra5 {[%emt 0:03:22]} Rb1 {[%emt 0:00:24]} 42. Ra7+ {[%emt 0:00:16]} Kf8 {[%emt 0:01:23]} 43. Ra6 {[%emt 0:00:58]} Kg7 {[%emt 0:00:13]} 44. Rf6 {[%emt 0:00:09]} Rb3+ {[%emt 0:00:49]} 45. Ke4 {[%emt 0:00:11]} Rb4+ 46. Kd5 {[%emt 0:00:41]} Rb5+ {[%emt 0:00:11]} 47. Kc6 {[%emt 0:00:34]} (47. Kc4 $5 {[%cal Rc4b5]} Ra5 48. Kd4 $14) 47... Ra5 {[%emt 0:00:15]} 48. Rd6 {[%emt 0:01:00]} Ra4 {[%emt 0:00:29]} 49. Rd7+ $11 {[%emt 0:00:56]} (49. f5 $5 Ra6+ 50. Kd7 Rxd6+ 51. Kxd6 gxf5 52. Ke5 $11) 49... Kf8 {[%emt 0:00:13]} 1/2-1/2

[Event "USA-ch Girls 2017"]
[Site "Saint Louis"]
[Date "2017.07.16"]
[Round "8"]
[White "Bykovtsev, Agata"]
[Black "Eswaran, Ashritha"]
[Result "1/2-1/2"]
[ECO "B28"]
[WhiteElo "2045"]
[BlackElo "2086"]
[Annotator "NA RC"]
[PlyCount "51"]
[EventDate "2017.??.??"]
[EventType "tourn"]
[EventCountry "USA"]
[SourceTitle "playchess.com"]
[Source "ChessBase"]
[SourceQuality "1"]
[TimeControl "40/5400+30:1800+30"]

1. e4 {[%emt 0:00:00]} c5 {[%emt 0:00:07]} 2. Nf3 {[%emt 0:00:00]} a6 {[%emt 0:00:09]} 3. c3 {[%emt 0:01:14]} g6 {[%emt 0:00:12]} 4. d4 {[%emt 0:03:07]} cxd4 {[%emt 0:00:16] B28: Sicilian: 2 Nf3 a6 (O'Kelly Variation)} 5. cxd4 {[%emt 0:00:19]} d5 {[%emt 0:00:28]} 6. e5 {[%emt 0:01:41]} Bg4 {[%emt 0:00:37]} 7. Be2 {[%emt 0:03:50]} Nc6 {[%emt 0:01:49]} 8. O-O {[%emt 0:15:20]} (8. h3 Bxf3 9. Bxf3 e6 10. O-O Qb6 11. Be3 Qxb2 12. Nd2 {1-0 (35) Kosintseva,T (2496)-Cramling,P (2525) Beijing 2013}) 8... Bxf3 {[%emt 0:01:46]} 9. Bxf3 {[%emt 0:00:16]} e6 {[%emt 0:00:29]} 10. Nc3 {[%emt 0:08:59]} Nge7 {[%emt 0:02:40]} 11. Bg5 {[%emt 0:04:31]} Qb6 {[%emt 0:02:03]} 12. Bf6 {[%emt 0:05:26]} Rg8 $146 {[%emt 0:00:47]} 13. Bxe7 {[%emt 0:02:39]} Bxe7 {[%emt 0:01:17]} 14. Ne2 {[%emt 0:01:55]} Kf8 {[%emt 0:06:29]} 15. Qd2 {[%emt 0:00:59]} Kg7 {[%emt 0:00:33]} 16. Rfd1 {[%emt 0:02:41]} Rgf8 {[%emt 0:02:54]} 17. b3 {[%emt 0:12:06]} Rae8 {[%emt 0:06:16]} 18. Nf4 {[%emt 0:03:51]} Bd8 {[%emt 0:04:05]} 19. Qe3 {[%emt 0:04:39]} Qa7 {[%emt 0:07:21]} 20. Rac1 {[%emt 0:02:57]} Bb6 {[%emt 0:01:32]} 21. Nh5+ $11 {[%emt 0:13:03]} gxh5 {[%emt 0:03:52]} 22. Qg5+ {[%emt 0:00:04]} Kh8 {[%emt 0:00:08]} 23. Qf6+ {[%emt 0:00:11]} Kg8 {[%emt 0:00:06]} 24. Qg5+ {[%emt 0:05:27]} Kh8 {[%emt 0:00:06]} 25. Qf6+ {[%emt 0:00:09]} Kg8 {[%emt 0:00:07]} 26. Qg5+ {[%emt 0:02:35]} 1/2-1/2